{"text_format":"3","workbook":"xlsx","n_sheets":6,"sheets":["Overall mapping","Overall mapping with filters","A91 mapping","A80 mapping","Crab mapping","GT mapping"],"not_rendered":{"defined_names":1},"read":"whole","date_system":"1900"}

{"sheet":"Overall mapping","index":0,"n_rows":27,"n_cols":14,"rows_kept":27,"merged":[[0,0,2,1],[1,2,1,11],[1,12,1,13],[3,0,6,0],[7,0,26,0]]}
["How to read this table: \n\nEDR Content Rating: quality/completeness of information captured in EDR form(s), rated 1 to 5 \n   5: data are essentially complete/sufficient to support calculation or estimation of all relevant performance metrics \n   4: data are sufficiently complete to support all intended performance metrics specified by Council\n   3: data are incomplete, but sufficient to support meaningful estimates/indices of intended performance metrics \n   2: data are fragmentary and do not support generally comparable performance metrics, but individual variables collected provide potentially useful information\n   1: data are collected but are insufficient to provide useful information\n   blank - indicates no data collected\n\nPerformance Metrics Rows: The 1's indicate if one or more of these data elements are used in the creation of these performance metrics."]
[null,null,"EDR data element (variable) categories",{"$nulls":9},"Also requires existing data"]
[null,null,"Capital Stock","Labor","Energy","Materials","Services","Capital Investment","Quota Lease Value","Crew Licenses","Revenues (fisheries products)","Other Revenues (royalties, charter, tendering)","Existing administrative records","Existing statistical surveys"]
["EDR Content Rating","A80",4,4,5,5,5,4,4,4,4,4]
[null,"A91",null,null,3]
[null,"Gulf Trawl",4,4,3,1,null,2,null,4]
[null,"Crab",4,4,4,3,null,null,5,4,5]
["Performance Metrics listed in EDR implemention RIR (see Table 1 from Nov. 2019 paper)","Capitalized value of vessel/plant and equipment",1]
[null,"Direct Capacity",1,{"$nulls":9},1]
[null,"Capacity Utilization",1,1,1,1,1,1,{"$nulls":4},1]
[null,"Profit",1,1,1,1,1,1,1,null,1,1,1]
[null,"Quasi-rent",1,1,1,1,null,null,1,null,1,null,1]
[null,"Productivity",1,1,1,1,1,1,null,null,1,1,1]
[null,"Fuel Consumption",null,null,1]
[null,"Distribution of Harvest Volume and Revenue",{"$nulls":6},1,1,null,null,1]
[null,"Distribution of Profits and Quasi-rents within and between the harvesting and processing sectors",{"$nulls":6},1,1]
[null,"Distributions of harvester and processor use rights",{"$nulls":6},1,{"$nulls":3},1]
[null,"Value of privileges ",{"$nulls":6},1,{"$nulls":3},1]
[null,"Vertical Integration",{"$nulls":6},1,{"$nulls":3},1]
[null,"Concentration of ownership, vessels/plants, QS, by sector, domestic/foreign",{"$nulls":6},1,{"$nulls":3},1]
[null,"Degree of involvement of harvesters/processors in non-program AK fisheries",{"$nulls":10},1]
[null,"Regional economic impacts- wages and purchasing",1,1,1,1,1,null,null,1,1,1,1,1]
[null,"Seasonality of catch and ex-vessel revenue by vessel class, port of landing, and residence",{"$nulls":10},1]
[null,"Harvesting employment and payments to harvesting crews",null,1,{"$nulls":5},1]
[null,"Processing employment and payments to processing crews",null,1]
[null,"Individual non-labor operating inputs, quantity and cost",null,null,1,1,1]
[null,"Capitalized purchases of trawl and excluder gear",{"$nulls":5},1]

{"sheet":"Overall mapping with filters","index":1,"n_rows":27,"n_cols":14,"rows_kept":27,"merged":[[0,0,2,1],[1,2,1,11],[1,12,1,13],[3,0,6,0],[7,0,26,0]]}
[{"$f":"'Overall mapping'!A1","v":"How to read this table: \n\nEDR Content Rating: quality/completeness of information captured in EDR form(s), rated 1 to 5 \n   5: data are essentially complete/sufficient to support calculation or estimation of all relevant performance metrics \n   4: data are sufficiently complete to support all intended performance metrics specified by Council\n   3: data are incomplete, but sufficient to support meaningful estimates/indices of intended performance metrics \n   2: data are fragmentary and do not support generally comparable performance metrics, but individual variables collected provide potentially useful information\n   1: data are collected but are insufficient to provide useful information\n   blank - indicates no data collected\n\nPerformance Metrics Rows: The 1's indicate if one or more of these data elements are used in the creation of these performance metrics."}]
[null,null,{"$f":"'Overall mapping'!C2","v":"EDR data element (variable) categories"},{"$nulls":9},{"$f":"'Overall mapping'!M2","v":"Also requires existing data"}]
[null,null,{"$f":"'Overall mapping'!C3","v":"Capital Stock"},{"$f":"'Overall mapping'!D3","v":"Labor"},{"$f":"'Overall mapping'!E3","v":"Energy"},{"$f":"'Overall mapping'!F3","v":"Materials"},{"$f":"'Overall mapping'!G3","v":"Services"},{"$f":"'Overall mapping'!H3","v":"Capital Investment"},{"$f":"'Overall mapping'!I3","v":"Quota Lease Value"},{"$f":"'Overall mapping'!J3","v":"Crew Licenses"},{"$f":"'Overall mapping'!K3","v":"Revenues (fisheries products)"},{"$f":"'Overall mapping'!L3","v":"Other Revenues (royalties, charter, tendering)"},{"$f":"'Overall mapping'!M3","v":"Existing administrative records"},{"$f":"'Overall mapping'!N3","v":"Existing statistical surveys"}]
[{"$f":"'Overall mapping'!A4","v":"EDR Content Rating"},{"$f":"'Overall mapping'!B4","v":"A80"},{"$f":"'Overall mapping'!C4","v":4},{"$f":"IF('Overall mapping'!D4>0,'Overall mapping'!D4,\"\")","v":4},{"$f":"IF('Overall mapping'!E4>0,'Overall mapping'!E4,\"\")","v":5},{"$f":"IF('Overall mapping'!F4>0,'Overall mapping'!F4,\"\")","v":5},{"$f":"IF('Overall mapping'!G4>0,'Overall mapping'!G4,\"\")","v":5},{"$f":"IF('Overall mapping'!H4>0,'Overall mapping'!H4,\"\")","v":4},{"$f":"IF('Overall mapping'!I4>0,'Overall mapping'!I4,\"\")","v":4},{"$f":"IF('Overall mapping'!J4>0,'Overall mapping'!J4,\"\")","v":4},{"$f":"IF('Overall mapping'!K4>0,'Overall mapping'!K4,\"\")","v":4},{"$f":"IF('Overall mapping'!L4>0,'Overall mapping'!L4,\"\")","v":4},{"$f":"IF('Overall mapping'!M4>0,'Overall mapping'!M4,\"\")","v":""},{"$f":"IF('Overall mapping'!N4>0,'Overall mapping'!N4,\"\")","v":""}]
[null,{"$f":"'Overall mapping'!B5","v":"A91"},{"$f":"'Overall mapping'!C5","v":0},{"$f":"IF('Overall mapping'!D5>0,'Overall mapping'!D5,\"\")","v":""},{"$f":"IF('Overall mapping'!E5>0,'Overall mapping'!E5,\"\")","v":3},{"$f":"IF('Overall mapping'!F5>0,'Overall mapping'!F5,\"\")","v":""},{"$f":"IF('Overall mapping'!G5>0,'Overall mapping'!G5,\"\")","v":""},{"$f":"IF('Overall mapping'!H5>0,'Overall mapping'!H5,\"\")","v":""},{"$f":"IF('Overall mapping'!I5>0,'Overall mapping'!I5,\"\")","v":""},{"$f":"IF('Overall mapping'!J5>0,'Overall mapping'!J5,\"\")","v":""},{"$f":"IF('Overall mapping'!K5>0,'Overall mapping'!K5,\"\")","v":""},{"$f":"IF('Overall mapping'!L5>0,'Overall mapping'!L5,\"\")","v":""},{"$f":"IF('Overall mapping'!M5>0,'Overall mapping'!M5,\"\")","v":""},{"$f":"IF('Overall mapping'!N5>0,'Overall mapping'!N5,\"\")","v":""}]
[null,{"$f":"'Overall mapping'!B6","v":"Gulf Trawl"},{"$f":"'Overall mapping'!C6","v":4},{"$f":"IF('Overall mapping'!D6>0,'Overall mapping'!D6,\"\")","v":4},{"$f":"IF('Overall mapping'!E6>0,'Overall mapping'!E6,\"\")","v":3},{"$f":"IF('Overall mapping'!F6>0,'Overall mapping'!F6,\"\")","v":1},{"$f":"IF('Overall mapping'!G6>0,'Overall mapping'!G6,\"\")","v":""},{"$f":"IF('Overall mapping'!H6>0,'Overall mapping'!H6,\"\")","v":2},{"$f":"IF('Overall mapping'!I6>0,'Overall mapping'!I6,\"\")","v":""},{"$f":"IF('Overall mapping'!J6>0,'Overall mapping'!J6,\"\")","v":4},{"$f":"IF('Overall mapping'!K6>0,'Overall mapping'!K6,\"\")","v":""},{"$f":"IF('Overall mapping'!L6>0,'Overall mapping'!L6,\"\")","v":""},{"$f":"IF('Overall mapping'!M6>0,'Overall mapping'!M6,\"\")","v":""},{"$f":"IF('Overall mapping'!N6>0,'Overall mapping'!N6,\"\")","v":""}]
[null,{"$f":"'Overall mapping'!B7","v":"Crab"},{"$f":"'Overall mapping'!C7","v":4},{"$f":"IF('Overall mapping'!D7>0,'Overall mapping'!D7,\"\")","v":4},{"$f":"IF('Overall mapping'!E7>0,'Overall mapping'!E7,\"\")","v":4},{"$f":"IF('Overall mapping'!F7>0,'Overall mapping'!F7,\"\")","v":3},{"$f":"IF('Overall mapping'!G7>0,'Overall mapping'!G7,\"\")","v":""},{"$f":"IF('Overall mapping'!H7>0,'Overall mapping'!H7,\"\")","v":""},{"$f":"IF('Overall mapping'!I7>0,'Overall mapping'!I7,\"\")","v":5},{"$f":"IF('Overall mapping'!J7>0,'Overall mapping'!J7,\"\")","v":4},{"$f":"IF('Overall mapping'!K7>0,'Overall mapping'!K7,\"\")","v":5},{"$f":"IF('Overall mapping'!L7>0,'Overall mapping'!L7,\"\")","v":""},{"$f":"IF('Overall mapping'!M7>0,'Overall mapping'!M7,\"\")","v":""},{"$f":"IF('Overall mapping'!N7>0,'Overall mapping'!N7,\"\")","v":""}]
[{"$f":"'Overall mapping'!A8","v":"Performance Metrics listed in EDR implemention RIR (see Table 1 from Nov. 2019 paper)"},{"$f":"'Overall mapping'!B8","v":"Capitalized value of vessel/plant and equipment"},{"$f":"'Overall mapping'!C8","v":1},{"$f":"IF('Overall mapping'!D8>0,'Overall mapping'!D8,\"\")","v":""},{"$f":"IF('Overall mapping'!E8>0,'Overall mapping'!E8,\"\")","v":""},{"$f":"IF('Overall mapping'!F8>0,'Overall mapping'!F8,\"\")","v":""},{"$f":"IF('Overall mapping'!G8>0,'Overall mapping'!G8,\"\")","v":""},{"$f":"IF('Overall mapping'!H8>0,'Overall mapping'!H8,\"\")","v":""},{"$f":"IF('Overall mapping'!I8>0,'Overall mapping'!I8,\"\")","v":""},{"$f":"IF('Overall mapping'!J8>0,'Overall mapping'!J8,\"\")","v":""},{"$f":"IF('Overall mapping'!K8>0,'Overall mapping'!K8,\"\")","v":""},{"$f":"IF('Overall mapping'!L8>0,'Overall mapping'!L8,\"\")","v":""},{"$f":"IF('Overall mapping'!M8>0,'Overall mapping'!M8,\"\")","v":""},{"$f":"IF('Overall mapping'!N8>0,'Overall mapping'!N8,\"\")","v":""}]
[null,{"$f":"'Overall mapping'!B9","v":"Direct Capacity"},{"$f":"'Overall mapping'!C9","v":1},{"$f":"IF('Overall mapping'!D9>0,'Overall mapping'!D9,\"\")","v":""},{"$f":"IF('Overall mapping'!E9>0,'Overall mapping'!E9,\"\")","v":""},{"$f":"IF('Overall mapping'!F9>0,'Overall mapping'!F9,\"\")","v":""},{"$f":"IF('Overall mapping'!G9>0,'Overall mapping'!G9,\"\")","v":""},{"$f":"IF('Overall mapping'!H9>0,'Overall mapping'!H9,\"\")","v":""},{"$f":"IF('Overall mapping'!I9>0,'Overall mapping'!I9,\"\")","v":""},{"$f":"IF('Overall mapping'!J9>0,'Overall mapping'!J9,\"\")","v":""},{"$f":"IF('Overall mapping'!K9>0,'Overall mapping'!K9,\"\")","v":""},{"$f":"IF('Overall mapping'!L9>0,'Overall mapping'!L9,\"\")","v":""},{"$f":"IF('Overall mapping'!M9>0,'Overall mapping'!M9,\"\")","v":1},{"$f":"IF('Overall mapping'!N9>0,'Overall mapping'!N9,\"\")","v":""}]
[null,{"$f":"'Overall mapping'!B10","v":"Capacity Utilization"},{"$f":"'Overall mapping'!C10","v":1},{"$f":"IF('Overall mapping'!D10>0,'Overall mapping'!D10,\"\")","v":1},{"$f":"IF('Overall mapping'!E10>0,'Overall mapping'!E10,\"\")","v":1},{"$f":"IF('Overall mapping'!F10>0,'Overall mapping'!F10,\"\")","v":1},{"$f":"IF('Overall mapping'!G10>0,'Overall mapping'!G10,\"\")","v":1},{"$f":"IF('Overall mapping'!H10>0,'Overall mapping'!H10,\"\")","v":1},{"$f":"IF('Overall mapping'!I10>0,'Overall mapping'!I10,\"\")","v":""},{"$f":"IF('Overall mapping'!J10>0,'Overall mapping'!J10,\"\")","v":""},{"$f":"IF('Overall mapping'!K10>0,'Overall mapping'!K10,\"\")","v":""},{"$f":"IF('Overall mapping'!L10>0,'Overall mapping'!L10,\"\")","v":""},{"$f":"IF('Overall mapping'!M10>0,'Overall mapping'!M10,\"\")","v":1},{"$f":"IF('Overall mapping'!N10>0,'Overall mapping'!N10,\"\")","v":""}]
[null,{"$f":"'Overall mapping'!B11","v":"Profit"},{"$f":"'Overall mapping'!C11","v":1},{"$f":"IF('Overall mapping'!D11>0,'Overall mapping'!D11,\"\")","v":1},{"$f":"IF('Overall mapping'!E11>0,'Overall mapping'!E11,\"\")","v":1},{"$f":"IF('Overall mapping'!F11>0,'Overall mapping'!F11,\"\")","v":1},{"$f":"IF('Overall mapping'!G11>0,'Overall mapping'!G11,\"\")","v":1},{"$f":"IF('Overall mapping'!H11>0,'Overall mapping'!H11,\"\")","v":1},{"$f":"IF('Overall mapping'!I11>0,'Overall mapping'!I11,\"\")","v":1},{"$f":"IF('Overall mapping'!J11>0,'Overall mapping'!J11,\"\")","v":""},{"$f":"IF('Overall mapping'!K11>0,'Overall mapping'!K11,\"\")","v":1},{"$f":"IF('Overall mapping'!L11>0,'Overall mapping'!L11,\"\")","v":1},{"$f":"IF('Overall mapping'!M11>0,'Overall mapping'!M11,\"\")","v":1},{"$f":"IF('Overall mapping'!N11>0,'Overall mapping'!N11,\"\")","v":""}]
[null,{"$f":"'Overall mapping'!B12","v":"Quasi-rent"},{"$f":"'Overall mapping'!C12","v":1},{"$f":"IF('Overall mapping'!D12>0,'Overall mapping'!D12,\"\")","v":1},{"$f":"IF('Overall mapping'!E12>0,'Overall mapping'!E12,\"\")","v":1},{"$f":"IF('Overall mapping'!F12>0,'Overall mapping'!F12,\"\")","v":1},{"$f":"IF('Overall mapping'!G12>0,'Overall mapping'!G12,\"\")","v":""},{"$f":"IF('Overall mapping'!H12>0,'Overall mapping'!H12,\"\")","v":""},{"$f":"IF('Overall mapping'!I12>0,'Overall mapping'!I12,\"\")","v":1},{"$f":"IF('Overall mapping'!J12>0,'Overall mapping'!J12,\"\")","v":""},{"$f":"IF('Overall mapping'!K12>0,'Overall mapping'!K12,\"\")","v":1},{"$f":"IF('Overall mapping'!L12>0,'Overall mapping'!L12,\"\")","v":""},{"$f":"IF('Overall mapping'!M12>0,'Overall mapping'!M12,\"\")","v":1},{"$f":"IF('Overall mapping'!N12>0,'Overall mapping'!N12,\"\")","v":""}]
[null,{"$f":"'Overall mapping'!B13","v":"Productivity"},{"$f":"'Overall mapping'!C13","v":1},{"$f":"IF('Overall mapping'!D13>0,'Overall mapping'!D13,\"\")","v":1},{"$f":"IF('Overall mapping'!E13>0,'Overall mapping'!E13,\"\")","v":1},{"$f":"IF('Overall mapping'!F13>0,'Overall mapping'!F13,\"\")","v":1},{"$f":"IF('Overall mapping'!G13>0,'Overall mapping'!G13,\"\")","v":1},{"$f":"IF('Overall mapping'!H13>0,'Overall mapping'!H13,\"\")","v":1},{"$f":"IF('Overall mapping'!I13>0,'Overall mapping'!I13,\"\")","v":""},{"$f":"IF('Overall mapping'!J13>0,'Overall mapping'!J13,\"\")","v":""},{"$f":"IF('Overall mapping'!K13>0,'Overall mapping'!K13,\"\")","v":1},{"$f":"IF('Overall mapping'!L13>0,'Overall mapping'!L13,\"\")","v":1},{"$f":"IF('Overall mapping'!M13>0,'Overall mapping'!M13,\"\")","v":1},{"$f":"IF('Overall mapping'!N13>0,'Overall mapping'!N13,\"\")","v":""}]
[null,{"$f":"'Overall mapping'!B14","v":"Fuel Consumption"},{"$f":"'Overall mapping'!C14","v":0},{"$f":"IF('Overall mapping'!D14>0,'Overall mapping'!D14,\"\")","v":""},{"$f":"IF('Overall mapping'!E14>0,'Overall mapping'!E14,\"\")","v":1},{"$f":"IF('Overall mapping'!F14>0,'Overall mapping'!F14,\"\")","v":""},{"$f":"IF('Overall mapping'!G14>0,'Overall mapping'!G14,\"\")","v":""},{"$f":"IF('Overall mapping'!H14>0,'Overall mapping'!H14,\"\")","v":""},{"$f":"IF('Overall mapping'!I14>0,'Overall mapping'!I14,\"\")","v":""},{"$f":"IF('Overall mapping'!J14>0,'Overall mapping'!J14,\"\")","v":""},{"$f":"IF('Overall mapping'!K14>0,'Overall mapping'!K14,\"\")","v":""},{"$f":"IF('Overall mapping'!L14>0,'Overall mapping'!L14,\"\")","v":""},{"$f":"IF('Overall mapping'!M14>0,'Overall mapping'!M14,\"\")","v":""},{"$f":"IF('Overall mapping'!N14>0,'Overall mapping'!N14,\"\")","v":""}]
[null,{"$f":"'Overall mapping'!B15","v":"Distribution of Harvest Volume and Revenue"},{"$f":"'Overall mapping'!C15","v":0},{"$f":"IF('Overall mapping'!D15>0,'Overall mapping'!D15,\"\")","v":""},{"$f":"IF('Overall mapping'!E15>0,'Overall mapping'!E15,\"\")","v":""},{"$f":"IF('Overall mapping'!F15>0,'Overall mapping'!F15,\"\")","v":""},{"$f":"IF('Overall mapping'!G15>0,'Overall mapping'!G15,\"\")","v":""},{"$f":"IF('Overall mapping'!H15>0,'Overall mapping'!H15,\"\")","v":""},{"$f":"IF('Overall mapping'!I15>0,'Overall mapping'!I15,\"\")","v":1},{"$f":"IF('Overall mapping'!J15>0,'Overall mapping'!J15,\"\")","v":1},{"$f":"IF('Overall mapping'!K15>0,'Overall mapping'!K15,\"\")","v":""},{"$f":"IF('Overall mapping'!L15>0,'Overall mapping'!L15,\"\")","v":""},{"$f":"IF('Overall mapping'!M15>0,'Overall mapping'!M15,\"\")","v":1},{"$f":"IF('Overall mapping'!N15>0,'Overall mapping'!N15,\"\")","v":""}]
[null,{"$f":"'Overall mapping'!B16","v":"Distribution of Profits and Quasi-rents within and between the harvesting and processing sectors"},{"$f":"'Overall mapping'!C16","v":0},{"$f":"IF('Overall mapping'!D16>0,'Overall mapping'!D16,\"\")","v":""},{"$f":"IF('Overall mapping'!E16>0,'Overall mapping'!E16,\"\")","v":""},{"$f":"IF('Overall mapping'!F16>0,'Overall mapping'!F16,\"\")","v":""},{"$f":"IF('Overall mapping'!G16>0,'Overall mapping'!G16,\"\")","v":""},{"$f":"IF('Overall mapping'!H16>0,'Overall mapping'!H16,\"\")","v":""},{"$f":"IF('Overall mapping'!I16>0,'Overall mapping'!I16,\"\")","v":1},{"$f":"IF('Overall mapping'!J16>0,'Overall mapping'!J16,\"\")","v":1},{"$f":"IF('Overall mapping'!K16>0,'Overall mapping'!K16,\"\")","v":""},{"$f":"IF('Overall mapping'!L16>0,'Overall mapping'!L16,\"\")","v":""},{"$f":"IF('Overall mapping'!M16>0,'Overall mapping'!M16,\"\")","v":""},{"$f":"IF('Overall mapping'!N16>0,'Overall mapping'!N16,\"\")","v":""}]
[null,{"$f":"'Overall mapping'!B17","v":"Distributions of harvester and processor use rights"},{"$f":"'Overall mapping'!C17","v":0},{"$f":"IF('Overall mapping'!D17>0,'Overall mapping'!D17,\"\")","v":""},{"$f":"IF('Overall mapping'!E17>0,'Overall mapping'!E17,\"\")","v":""},{"$f":"IF('Overall mapping'!F17>0,'Overall mapping'!F17,\"\")","v":""},{"$f":"IF('Overall mapping'!G17>0,'Overall mapping'!G17,\"\")","v":""},{"$f":"IF('Overall mapping'!H17>0,'Overall mapping'!H17,\"\")","v":""},{"$f":"IF('Overall mapping'!I17>0,'Overall mapping'!I17,\"\")","v":1},{"$f":"IF('Overall mapping'!J17>0,'Overall mapping'!J17,\"\")","v":""},{"$f":"IF('Overall mapping'!K17>0,'Overall mapping'!K17,\"\")","v":""},{"$f":"IF('Overall mapping'!L17>0,'Overall mapping'!L17,\"\")","v":""},{"$f":"IF('Overall mapping'!M17>0,'Overall mapping'!M17,\"\")","v":1},{"$f":"IF('Overall mapping'!N17>0,'Overall mapping'!N17,\"\")","v":""}]
[null,{"$f":"'Overall mapping'!B18","v":"Value of privileges "},{"$f":"'Overall mapping'!C18","v":0},{"$f":"IF('Overall mapping'!D18>0,'Overall mapping'!D18,\"\")","v":""},{"$f":"IF('Overall mapping'!E18>0,'Overall mapping'!E18,\"\")","v":""},{"$f":"IF('Overall mapping'!F18>0,'Overall mapping'!F18,\"\")","v":""},{"$f":"IF('Overall mapping'!G18>0,'Overall mapping'!G18,\"\")","v":""},{"$f":"IF('Overall mapping'!H18>0,'Overall mapping'!H18,\"\")","v":""},{"$f":"IF('Overall mapping'!I18>0,'Overall mapping'!I18,\"\")","v":1},{"$f":"IF('Overall mapping'!J18>0,'Overall mapping'!J18,\"\")","v":""},{"$f":"IF('Overall mapping'!K18>0,'Overall mapping'!K18,\"\")","v":""},{"$f":"IF('Overall mapping'!L18>0,'Overall mapping'!L18,\"\")","v":""},{"$f":"IF('Overall mapping'!M18>0,'Overall mapping'!M18,\"\")","v":1},{"$f":"IF('Overall mapping'!N18>0,'Overall mapping'!N18,\"\")","v":""}]
[null,{"$f":"'Overall mapping'!B19","v":"Vertical Integration"},{"$f":"'Overall mapping'!C19","v":0},{"$f":"IF('Overall mapping'!D19>0,'Overall mapping'!D19,\"\")","v":""},{"$f":"IF('Overall mapping'!E19>0,'Overall mapping'!E19,\"\")","v":""},{"$f":"IF('Overall mapping'!F19>0,'Overall mapping'!F19,\"\")","v":""},{"$f":"IF('Overall mapping'!G19>0,'Overall mapping'!G19,\"\")","v":""},{"$f":"IF('Overall mapping'!H19>0,'Overall mapping'!H19,\"\")","v":""},{"$f":"IF('Overall mapping'!I19>0,'Overall mapping'!I19,\"\")","v":1},{"$f":"IF('Overall mapping'!J19>0,'Overall mapping'!J19,\"\")","v":""},{"$f":"IF('Overall mapping'!K19>0,'Overall mapping'!K19,\"\")","v":""},{"$f":"IF('Overall mapping'!L19>0,'Overall mapping'!L19,\"\")","v":""},{"$f":"IF('Overall mapping'!M19>0,'Overall mapping'!M19,\"\")","v":1},{"$f":"IF('Overall mapping'!N19>0,'Overall mapping'!N19,\"\")","v":""}]
[null,{"$f":"'Overall mapping'!B20","v":"Concentration of ownership, vessels/plants, QS, by sector, domestic/foreign"},{"$f":"'Overall mapping'!C20","v":0},{"$f":"IF('Overall mapping'!D20>0,'Overall mapping'!D20,\"\")","v":""},{"$f":"IF('Overall mapping'!E20>0,'Overall mapping'!E20,\"\")","v":""},{"$f":"IF('Overall mapping'!F20>0,'Overall mapping'!F20,\"\")","v":""},{"$f":"IF('Overall mapping'!G20>0,'Overall mapping'!G20,\"\")","v":""},{"$f":"IF('Overall mapping'!H20>0,'Overall mapping'!H20,\"\")","v":""},{"$f":"IF('Overall mapping'!I20>0,'Overall mapping'!I20,\"\")","v":1},{"$f":"IF('Overall mapping'!J20>0,'Overall mapping'!J20,\"\")","v":""},{"$f":"IF('Overall mapping'!K20>0,'Overall mapping'!K20,\"\")","v":""},{"$f":"IF('Overall mapping'!L20>0,'Overall mapping'!L20,\"\")","v":""},{"$f":"IF('Overall mapping'!M20>0,'Overall mapping'!M20,\"\")","v":1},{"$f":"IF('Overall mapping'!N20>0,'Overall mapping'!N20,\"\")","v":""}]
[null,{"$f":"'Overall mapping'!B21","v":"Degree of involvement of harvesters/processors in non-program AK fisheries"},{"$f":"'Overall mapping'!C21","v":0},{"$f":"IF('Overall mapping'!D21>0,'Overall mapping'!D21,\"\")","v":""},{"$f":"IF('Overall mapping'!E21>0,'Overall mapping'!E21,\"\")","v":""},{"$f":"IF('Overall mapping'!F21>0,'Overall mapping'!F21,\"\")","v":""},{"$f":"IF('Overall mapping'!G21>0,'Overall mapping'!G21,\"\")","v":""},{"$f":"IF('Overall mapping'!H21>0,'Overall mapping'!H21,\"\")","v":""},{"$f":"IF('Overall mapping'!I21>0,'Overall mapping'!I21,\"\")","v":""},{"$f":"IF('Overall mapping'!J21>0,'Overall mapping'!J21,\"\")","v":""},{"$f":"IF('Overall mapping'!K21>0,'Overall mapping'!K21,\"\")","v":""},{"$f":"IF('Overall mapping'!L21>0,'Overall mapping'!L21,\"\")","v":""},{"$f":"IF('Overall mapping'!M21>0,'Overall mapping'!M21,\"\")","v":1},{"$f":"IF('Overall mapping'!N21>0,'Overall mapping'!N21,\"\")","v":""}]
[null,{"$f":"'Overall mapping'!B22","v":"Regional economic impacts- wages and purchasing"},{"$f":"'Overall mapping'!C22","v":1},{"$f":"IF('Overall mapping'!D22>0,'Overall mapping'!D22,\"\")","v":1},{"$f":"IF('Overall mapping'!E22>0,'Overall mapping'!E22,\"\")","v":1},{"$f":"IF('Overall mapping'!F22>0,'Overall mapping'!F22,\"\")","v":1},{"$f":"IF('Overall mapping'!G22>0,'Overall mapping'!G22,\"\")","v":1},{"$f":"IF('Overall mapping'!H22>0,'Overall mapping'!H22,\"\")","v":""},{"$f":"IF('Overall mapping'!I22>0,'Overall mapping'!I22,\"\")","v":""},{"$f":"IF('Overall mapping'!J22>0,'Overall mapping'!J22,\"\")","v":1},{"$f":"IF('Overall mapping'!K22>0,'Overall mapping'!K22,\"\")","v":1},{"$f":"IF('Overall mapping'!L22>0,'Overall mapping'!L22,\"\")","v":1},{"$f":"IF('Overall mapping'!M22>0,'Overall mapping'!M22,\"\")","v":1},{"$f":"IF('Overall mapping'!N22>0,'Overall mapping'!N22,\"\")","v":1}]
[null,{"$f":"'Overall mapping'!B23","v":"Seasonality of catch and ex-vessel revenue by vessel class, port of landing, and residence"},{"$f":"'Overall mapping'!C23","v":0},{"$f":"IF('Overall mapping'!D23>0,'Overall mapping'!D23,\"\")","v":""},{"$f":"IF('Overall mapping'!E23>0,'Overall mapping'!E23,\"\")","v":""},{"$f":"IF('Overall mapping'!F23>0,'Overall mapping'!F23,\"\")","v":""},{"$f":"IF('Overall mapping'!G23>0,'Overall mapping'!G23,\"\")","v":""},{"$f":"IF('Overall mapping'!H23>0,'Overall mapping'!H23,\"\")","v":""},{"$f":"IF('Overall mapping'!I23>0,'Overall mapping'!I23,\"\")","v":""},{"$f":"IF('Overall mapping'!J23>0,'Overall mapping'!J23,\"\")","v":""},{"$f":"IF('Overall mapping'!K23>0,'Overall mapping'!K23,\"\")","v":""},{"$f":"IF('Overall mapping'!L23>0,'Overall mapping'!L23,\"\")","v":""},{"$f":"IF('Overall mapping'!M23>0,'Overall mapping'!M23,\"\")","v":1},{"$f":"IF('Overall mapping'!N23>0,'Overall mapping'!N23,\"\")","v":""}]
[null,{"$f":"'Overall mapping'!B24","v":"Harvesting employment and payments to harvesting crews"},{"$f":"'Overall mapping'!C24","v":0},{"$f":"IF('Overall mapping'!D24>0,'Overall mapping'!D24,\"\")","v":1},{"$f":"IF('Overall mapping'!E24>0,'Overall mapping'!E24,\"\")","v":""},{"$f":"IF('Overall mapping'!F24>0,'Overall mapping'!F24,\"\")","v":""},{"$f":"IF('Overall mapping'!G24>0,'Overall mapping'!G24,\"\")","v":""},{"$f":"IF('Overall mapping'!H24>0,'Overall mapping'!H24,\"\")","v":""},{"$f":"IF('Overall mapping'!I24>0,'Overall mapping'!I24,\"\")","v":""},{"$f":"IF('Overall mapping'!J24>0,'Overall mapping'!J24,\"\")","v":1},{"$f":"IF('Overall mapping'!K24>0,'Overall mapping'!K24,\"\")","v":""},{"$f":"IF('Overall mapping'!L24>0,'Overall mapping'!L24,\"\")","v":""},{"$f":"IF('Overall mapping'!M24>0,'Overall mapping'!M24,\"\")","v":""},{"$f":"IF('Overall mapping'!N24>0,'Overall mapping'!N24,\"\")","v":""}]
[null,{"$f":"'Overall mapping'!B25","v":"Processing employment and payments to processing crews"},{"$f":"'Overall mapping'!C25","v":0},{"$f":"IF('Overall mapping'!D25>0,'Overall mapping'!D25,\"\")","v":1},{"$f":"IF('Overall mapping'!E25>0,'Overall mapping'!E25,\"\")","v":""},{"$f":"IF('Overall mapping'!F25>0,'Overall mapping'!F25,\"\")","v":""},{"$f":"IF('Overall mapping'!G25>0,'Overall mapping'!G25,\"\")","v":""},{"$f":"IF('Overall mapping'!H25>0,'Overall mapping'!H25,\"\")","v":""},{"$f":"IF('Overall mapping'!I25>0,'Overall mapping'!I25,\"\")","v":""},{"$f":"IF('Overall mapping'!J25>0,'Overall mapping'!J25,\"\")","v":""},{"$f":"IF('Overall mapping'!K25>0,'Overall mapping'!K25,\"\")","v":""},{"$f":"IF('Overall mapping'!L25>0,'Overall mapping'!L25,\"\")","v":""},{"$f":"IF('Overall mapping'!M25>0,'Overall mapping'!M25,\"\")","v":""},{"$f":"IF('Overall mapping'!N25>0,'Overall mapping'!N25,\"\")","v":""}]
[null,{"$f":"'Overall mapping'!B26","v":"Individual non-labor operating inputs, quantity and cost"},{"$f":"'Overall mapping'!C26","v":0},{"$f":"IF('Overall mapping'!D26>0,'Overall mapping'!D26,\"\")","v":""},{"$f":"IF('Overall mapping'!E26>0,'Overall mapping'!E26,\"\")","v":1},{"$f":"IF('Overall mapping'!F26>0,'Overall mapping'!F26,\"\")","v":1},{"$f":"IF('Overall mapping'!G26>0,'Overall mapping'!G26,\"\")","v":1},{"$f":"IF('Overall mapping'!H26>0,'Overall mapping'!H26,\"\")","v":""},{"$f":"IF('Overall mapping'!I26>0,'Overall mapping'!I26,\"\")","v":""},{"$f":"IF('Overall mapping'!J26>0,'Overall mapping'!J26,\"\")","v":""},{"$f":"IF('Overall mapping'!K26>0,'Overall mapping'!K26,\"\")","v":""},{"$f":"IF('Overall mapping'!L26>0,'Overall mapping'!L26,\"\")","v":""},{"$f":"IF('Overall mapping'!M26>0,'Overall mapping'!M26,\"\")","v":""},{"$f":"IF('Overall mapping'!N26>0,'Overall mapping'!N26,\"\")","v":""}]
[null,{"$f":"'Overall mapping'!B27","v":"Capitalized purchases of trawl and excluder gear"},{"$f":"'Overall mapping'!C27","v":0},{"$f":"IF('Overall mapping'!D27>0,'Overall mapping'!D27,\"\")","v":""},{"$f":"IF('Overall mapping'!E27>0,'Overall mapping'!E27,\"\")","v":""},{"$f":"IF('Overall mapping'!F27>0,'Overall mapping'!F27,\"\")","v":""},{"$f":"IF('Overall mapping'!G27>0,'Overall mapping'!G27,\"\")","v":""},{"$f":"IF('Overall mapping'!H27>0,'Overall mapping'!H27,\"\")","v":1},{"$f":"IF('Overall mapping'!I27>0,'Overall mapping'!I27,\"\")","v":""},{"$f":"IF('Overall mapping'!J27>0,'Overall mapping'!J27,\"\")","v":""},{"$f":"IF('Overall mapping'!K27>0,'Overall mapping'!K27,\"\")","v":""},{"$f":"IF('Overall mapping'!L27>0,'Overall mapping'!L27,\"\")","v":""},{"$f":"IF('Overall mapping'!M27>0,'Overall mapping'!M27,\"\")","v":""},{"$f":"IF('Overall mapping'!N27>0,'Overall mapping'!N27,\"\")","v":""}]

{"sheet":"A91 mapping","index":2,"n_rows":48,"n_cols":14,"rows_kept":48,"merged":[[0,0,2,1],[1,2,1,11],[1,12,1,13],[3,0,6,0],[7,0,26,0]]}
[{"$f":"'Overall mapping'!A1","v":"How to read this table: \n\nEDR Content Rating: quality/completeness of information captured in EDR form(s), rated 1 to 5 \n   5: data are essentially complete/sufficient to support calculation or estimation of all relevant performance metrics \n   4: data are sufficiently complete to support all intended performance metrics specified by Council\n   3: data are incomplete, but sufficient to support meaningful estimates/indices of intended performance metrics \n   2: data are fragmentary and do not support generally comparable performance metrics, but individual variables collected provide potentially useful information\n   1: data are collected but are insufficient to provide useful information\n   blank - indicates no data collected\n\nPerformance Metrics Rows: The 1's indicate if one or more of these data elements are used in the creation of these performance metrics."}]
[null,null,"EDR data element (variable) categories",{"$nulls":9},{"$f":"'Overall mapping'!M2","v":"Also requires existing data"}]
[null,null,"Capital Stock","Labor","Energy","Materials","Services","Capital Investment","Quota Lease Value","Crew Licenses","Revenues (fisheries products)","Other Revenues (royalties, charter, tendering)","Existing administrative records","Existing statistical surveys"]
[{"$f":"'Overall mapping'!A4","v":"EDR Content Rating"}]
[null,{"$f":"'Overall mapping'!B5","v":"A91"},{"$f":"IF('Overall mapping'!C5>0,'Overall mapping'!C5,\"\")","v":""},{"$f":"IF('Overall mapping'!D5>0,'Overall mapping'!D5,\"\")","v":""},{"$f":"IF('Overall mapping'!E5>0,'Overall mapping'!E5,\"\")","v":3},{"$f":"IF('Overall mapping'!F5>0,'Overall mapping'!F5,\"\")","v":""},{"$f":"IF('Overall mapping'!G5>0,'Overall mapping'!G5,\"\")","v":""},{"$f":"IF('Overall mapping'!H5>0,'Overall mapping'!H5,\"\")","v":""},{"$f":"IF('Overall mapping'!I5>0,'Overall mapping'!I5,\"\")","v":""},{"$f":"IF('Overall mapping'!J5>0,'Overall mapping'!J5,\"\")","v":""},{"$f":"IF('Overall mapping'!K5>0,'Overall mapping'!K5,\"\")","v":""},{"$f":"IF('Overall mapping'!L5>0,'Overall mapping'!L5,\"\")","v":""},{"$f":"IF('Overall mapping'!M5>0,'Overall mapping'!M5,\"\")","v":""},{"$f":"IF('Overall mapping'!N5>0,'Overall mapping'!N5,\"\")","v":""}]
[]
[]
[{"$f":"'Overall mapping'!A8","v":"Performance Metrics listed in EDR implemention RIR (see Table 1 from Nov. 2019 paper)"},{"$f":"IFERROR(__xludf.DUMMYFUNCTION(\"filter('Overall mapping'!B8:N27,'Overall mapping'!E8:E27=1,'Overall mapping'!C8:C27=\"\"\"\",'Overall mapping'!D8:D27=\"\"\"\",'Overall mapping'!F8:F27=\"\"\"\",'Overall mapping'!G8:G27=\"\"\"\",'Overall mapping'!H8:H27=\"\"\"\",'Overall mapping'!I8:I27=\"\"\"\",'Overall mapping\"&\"'!J8:J27=\"\"\"\",'Overall mapping'!K8:K27=\"\"\"\",'Overall mapping'!L8:L27=\"\"\"\")\"),\"Fuel Consumption\")","v":"Fuel Consumption"},null,null,{"$f":"IFERROR(__xludf.DUMMYFUNCTION(\"\"\"COMPUTED_VALUE\"\"\"),1)","v":1}]
{"$rows_empty":20}
[null,"Metrics that can't be calculated using A91 EDR data"]
[null,{"$f":"IFERROR(__xludf.DUMMYFUNCTION(\"filter('Overall mapping'!B8:B27,iserror(match('Overall mapping'!B8:B27,B8:B27,0)))\"),\"Capitalized value of vessel/plant and equipment\")","v":"Capitalized value of vessel/plant and equipment"}]
[null,{"$f":"IFERROR(__xludf.DUMMYFUNCTION(\"\"\"COMPUTED_VALUE\"\"\"),\"Direct Capacity\")","v":"Direct Capacity"}]
[null,{"$f":"IFERROR(__xludf.DUMMYFUNCTION(\"\"\"COMPUTED_VALUE\"\"\"),\"Capacity Utilization\")","v":"Capacity Utilization"}]
[null,{"$f":"IFERROR(__xludf.DUMMYFUNCTION(\"\"\"COMPUTED_VALUE\"\"\"),\"Profit\")","v":"Profit"}]
[null,{"$f":"IFERROR(__xludf.DUMMYFUNCTION(\"\"\"COMPUTED_VALUE\"\"\"),\"Quasi-rent\")","v":"Quasi-rent"}]
[null,{"$f":"IFERROR(__xludf.DUMMYFUNCTION(\"\"\"COMPUTED_VALUE\"\"\"),\"Productivity\")","v":"Productivity"}]
[null,{"$f":"IFERROR(__xludf.DUMMYFUNCTION(\"\"\"COMPUTED_VALUE\"\"\"),\"Distribution of Harvest Volume and Revenue\")","v":"Distribution of Harvest Volume and Revenue"}]
[null,{"$f":"IFERROR(__xludf.DUMMYFUNCTION(\"\"\"COMPUTED_VALUE\"\"\"),\"Distribution of Profits and Quasi-rents within and between the harvesting and processing sectors\")","v":"Distribution of Profits and Quasi-rents within and between the harvesting and processing sectors"}]
[null,{"$f":"IFERROR(__xludf.DUMMYFUNCTION(\"\"\"COMPUTED_VALUE\"\"\"),\"Distributions of harvester and processor use rights\")","v":"Distributions of harvester and processor use rights"}]
[null,{"$f":"IFERROR(__xludf.DUMMYFUNCTION(\"\"\"COMPUTED_VALUE\"\"\"),\"Value of privileges \")","v":"Value of privileges "}]
[null,{"$f":"IFERROR(__xludf.DUMMYFUNCTION(\"\"\"COMPUTED_VALUE\"\"\"),\"Vertical Integration\")","v":"Vertical Integration"}]
[null,{"$f":"IFERROR(__xludf.DUMMYFUNCTION(\"\"\"COMPUTED_VALUE\"\"\"),\"Concentration of ownership, vessels/plants, QS, by sector, domestic/foreign\")","v":"Concentration of ownership, vessels/plants, QS, by sector, domestic/foreign"}]
[null,{"$f":"IFERROR(__xludf.DUMMYFUNCTION(\"\"\"COMPUTED_VALUE\"\"\"),\"Degree of involvement of harvesters/processors in non-program AK fisheries\")","v":"Degree of involvement of harvesters/processors in non-program AK fisheries"}]
[null,{"$f":"IFERROR(__xludf.DUMMYFUNCTION(\"\"\"COMPUTED_VALUE\"\"\"),\"Regional economic impacts- wages and purchasing\")","v":"Regional economic impacts- wages and purchasing"}]
[null,{"$f":"IFERROR(__xludf.DUMMYFUNCTION(\"\"\"COMPUTED_VALUE\"\"\"),\"Seasonality of catch and ex-vessel revenue by vessel class, port of landing, and residence\")","v":"Seasonality of catch and ex-vessel revenue by vessel class, port of landing, and residence"}]
[null,{"$f":"IFERROR(__xludf.DUMMYFUNCTION(\"\"\"COMPUTED_VALUE\"\"\"),\"Harvesting employment and payments to harvesting crews\")","v":"Harvesting employment and payments to harvesting crews"}]
[null,{"$f":"IFERROR(__xludf.DUMMYFUNCTION(\"\"\"COMPUTED_VALUE\"\"\"),\"Processing employment and payments to processing crews\")","v":"Processing employment and payments to processing crews"}]
[null,{"$f":"IFERROR(__xludf.DUMMYFUNCTION(\"\"\"COMPUTED_VALUE\"\"\"),\"Individual non-labor operating inputs, quantity and cost\")","v":"Individual non-labor operating inputs, quantity and cost"}]
[null,{"$f":"IFERROR(__xludf.DUMMYFUNCTION(\"\"\"COMPUTED_VALUE\"\"\"),\"Capitalized purchases of trawl and excluder gear\")","v":"Capitalized purchases of trawl and excluder gear"}]

{"sheet":"A80 mapping","index":3,"n_rows":31,"n_cols":14,"rows_kept":31,"merged":[[0,0,2,1],[1,2,1,11],[1,12,1,13],[3,0,6,0],[7,0,26,0]]}
[{"$f":"'Overall mapping'!A1","v":"How to read this table: \n\nEDR Content Rating: quality/completeness of information captured in EDR form(s), rated 1 to 5 \n   5: data are essentially complete/sufficient to support calculation or estimation of all relevant performance metrics \n   4: data are sufficiently complete to support all intended performance metrics specified by Council\n   3: data are incomplete, but sufficient to support meaningful estimates/indices of intended performance metrics \n   2: data are fragmentary and do not support generally comparable performance metrics, but individual variables collected provide potentially useful information\n   1: data are collected but are insufficient to provide useful information\n   blank - indicates no data collected\n\nPerformance Metrics Rows: The 1's indicate if one or more of these data elements are used in the creation of these performance metrics."}]
[null,null,"EDR data element (variable) categories",{"$nulls":9},{"$f":"'Overall mapping'!M2","v":"Also requires existing data"}]
[null,null,"Capital Stock","Labor","Energy","Materials","Services","Capital Investment","Quota Lease Value","Crew Licenses","Revenues (fisheries products)","Other Revenues (royalties, charter, tendering)","Existing administrative records","Existing statistical surveys"]
[{"$f":"'Overall mapping'!A4","v":"EDR Content Rating"},{"$f":"'Overall mapping'!B4","v":"A80"},{"$f":"'Overall mapping'!C4","v":4},{"$f":"'Overall mapping'!D4","v":4},{"$f":"'Overall mapping'!E4","v":5},{"$f":"'Overall mapping'!F4","v":5},{"$f":"'Overall mapping'!G4","v":5},{"$f":"'Overall mapping'!H4","v":4},{"$f":"'Overall mapping'!I4","v":4},{"$f":"'Overall mapping'!J4","v":4},{"$f":"'Overall mapping'!K4","v":4},{"$f":"'Overall mapping'!L4","v":4}]
[]
[]
[]
[{"$f":"'Overall mapping'!A8","v":"Performance Metrics listed in EDR implemention RIR (see Table 1 from Nov. 2019 paper)"},{"$f":"IFERROR(__xludf.DUMMYFUNCTION(\"filter('Overall mapping'!B8:N27,('Overall mapping'!E8:E27=1) +('Overall mapping'!C8:C27=1) +('Overall mapping'!D8:D27=1) +('Overall mapping'!F8:F27=1)+('Overall mapping'!G8:G27=1)+('Overall mapping'!H8:H27=1)+('Overall mapping'!I8:I27=1)+('Overall mapping\"&\"'!J8:J27=1)+('Overall mapping'!K8:K27=1)+('Overall mapping'!L8:L27=1))\"),\"Capitalized value of vessel/plant and equipment\")","v":"Capitalized value of vessel/plant and equipment"},{"$f":"IFERROR(__xludf.DUMMYFUNCTION(\"\"\"COMPUTED_VALUE\"\"\"),1)","v":1}]
[null,{"$f":"IFERROR(__xludf.DUMMYFUNCTION(\"\"\"COMPUTED_VALUE\"\"\"),\"Direct Capacity\")","v":"Direct Capacity"},{"$f":"IFERROR(__xludf.DUMMYFUNCTION(\"\"\"COMPUTED_VALUE\"\"\"),1)","v":1},{"$nulls":9},{"$f":"IFERROR(__xludf.DUMMYFUNCTION(\"\"\"COMPUTED_VALUE\"\"\"),1)","v":1}]
[null,{"$f":"IFERROR(__xludf.DUMMYFUNCTION(\"\"\"COMPUTED_VALUE\"\"\"),\"Capacity Utilization\")","v":"Capacity Utilization"},{"$f":"IFERROR(__xludf.DUMMYFUNCTION(\"\"\"COMPUTED_VALUE\"\"\"),1)","v":1},{"$f":"IFERROR(__xludf.DUMMYFUNCTION(\"\"\"COMPUTED_VALUE\"\"\"),1)","v":1},{"$f":"IFERROR(__xludf.DUMMYFUNCTION(\"\"\"COMPUTED_VALUE\"\"\"),1)","v":1},{"$f":"IFERROR(__xludf.DUMMYFUNCTION(\"\"\"COMPUTED_VALUE\"\"\"),1)","v":1},{"$f":"IFERROR(__xludf.DUMMYFUNCTION(\"\"\"COMPUTED_VALUE\"\"\"),1)","v":1},{"$f":"IFERROR(__xludf.DUMMYFUNCTION(\"\"\"COMPUTED_VALUE\"\"\"),1)","v":1},{"$nulls":4},{"$f":"IFERROR(__xludf.DUMMYFUNCTION(\"\"\"COMPUTED_VALUE\"\"\"),1)","v":1}]
[null,{"$f":"IFERROR(__xludf.DUMMYFUNCTION(\"\"\"COMPUTED_VALUE\"\"\"),\"Profit\")","v":"Profit"},{"$f":"IFERROR(__xludf.DUMMYFUNCTION(\"\"\"COMPUTED_VALUE\"\"\"),1)","v":1},{"$f":"IFERROR(__xludf.DUMMYFUNCTION(\"\"\"COMPUTED_VALUE\"\"\"),1)","v":1},{"$f":"IFERROR(__xludf.DUMMYFUNCTION(\"\"\"COMPUTED_VALUE\"\"\"),1)","v":1},{"$f":"IFERROR(__xludf.DUMMYFUNCTION(\"\"\"COMPUTED_VALUE\"\"\"),1)","v":1},{"$f":"IFERROR(__xludf.DUMMYFUNCTION(\"\"\"COMPUTED_VALUE\"\"\"),1)","v":1},{"$f":"IFERROR(__xludf.DUMMYFUNCTION(\"\"\"COMPUTED_VALUE\"\"\"),1)","v":1},{"$f":"IFERROR(__xludf.DUMMYFUNCTION(\"\"\"COMPUTED_VALUE\"\"\"),1)","v":1},null,{"$f":"IFERROR(__xludf.DUMMYFUNCTION(\"\"\"COMPUTED_VALUE\"\"\"),1)","v":1},{"$f":"IFERROR(__xludf.DUMMYFUNCTION(\"\"\"COMPUTED_VALUE\"\"\"),1)","v":1},{"$f":"IFERROR(__xludf.DUMMYFUNCTION(\"\"\"COMPUTED_VALUE\"\"\"),1)","v":1}]
[null,{"$f":"IFERROR(__xludf.DUMMYFUNCTION(\"\"\"COMPUTED_VALUE\"\"\"),\"Quasi-rent\")","v":"Quasi-rent"},{"$f":"IFERROR(__xludf.DUMMYFUNCTION(\"\"\"COMPUTED_VALUE\"\"\"),1)","v":1},{"$f":"IFERROR(__xludf.DUMMYFUNCTION(\"\"\"COMPUTED_VALUE\"\"\"),1)","v":1},{"$f":"IFERROR(__xludf.DUMMYFUNCTION(\"\"\"COMPUTED_VALUE\"\"\"),1)","v":1},{"$f":"IFERROR(__xludf.DUMMYFUNCTION(\"\"\"COMPUTED_VALUE\"\"\"),1)","v":1},null,null,{"$f":"IFERROR(__xludf.DUMMYFUNCTION(\"\"\"COMPUTED_VALUE\"\"\"),1)","v":1},null,{"$f":"IFERROR(__xludf.DUMMYFUNCTION(\"\"\"COMPUTED_VALUE\"\"\"),1)","v":1},null,{"$f":"IFERROR(__xludf.DUMMYFUNCTION(\"\"\"COMPUTED_VALUE\"\"\"),1)","v":1}]
[null,{"$f":"IFERROR(__xludf.DUMMYFUNCTION(\"\"\"COMPUTED_VALUE\"\"\"),\"Productivity\")","v":"Productivity"},{"$f":"IFERROR(__xludf.DUMMYFUNCTION(\"\"\"COMPUTED_VALUE\"\"\"),1)","v":1},{"$f":"IFERROR(__xludf.DUMMYFUNCTION(\"\"\"COMPUTED_VALUE\"\"\"),1)","v":1},{"$f":"IFERROR(__xludf.DUMMYFUNCTION(\"\"\"COMPUTED_VALUE\"\"\"),1)","v":1},{"$f":"IFERROR(__xludf.DUMMYFUNCTION(\"\"\"COMPUTED_VALUE\"\"\"),1)","v":1},{"$f":"IFERROR(__xludf.DUMMYFUNCTION(\"\"\"COMPUTED_VALUE\"\"\"),1)","v":1},{"$f":"IFERROR(__xludf.DUMMYFUNCTION(\"\"\"COMPUTED_VALUE\"\"\"),1)","v":1},null,null,{"$f":"IFERROR(__xludf.DUMMYFUNCTION(\"\"\"COMPUTED_VALUE\"\"\"),1)","v":1},{"$f":"IFERROR(__xludf.DUMMYFUNCTION(\"\"\"COMPUTED_VALUE\"\"\"),1)","v":1},{"$f":"IFERROR(__xludf.DUMMYFUNCTION(\"\"\"COMPUTED_VALUE\"\"\"),1)","v":1}]
[null,{"$f":"IFERROR(__xludf.DUMMYFUNCTION(\"\"\"COMPUTED_VALUE\"\"\"),\"Fuel Consumption\")","v":"Fuel Consumption"},null,null,{"$f":"IFERROR(__xludf.DUMMYFUNCTION(\"\"\"COMPUTED_VALUE\"\"\"),1)","v":1}]
[null,{"$f":"IFERROR(__xludf.DUMMYFUNCTION(\"\"\"COMPUTED_VALUE\"\"\"),\"Distribution of Harvest Volume and Revenue\")","v":"Distribution of Harvest Volume and Revenue"},{"$nulls":6},{"$f":"IFERROR(__xludf.DUMMYFUNCTION(\"\"\"COMPUTED_VALUE\"\"\"),1)","v":1},{"$f":"IFERROR(__xludf.DUMMYFUNCTION(\"\"\"COMPUTED_VALUE\"\"\"),1)","v":1},null,null,{"$f":"IFERROR(__xludf.DUMMYFUNCTION(\"\"\"COMPUTED_VALUE\"\"\"),1)","v":1}]
[null,{"$f":"IFERROR(__xludf.DUMMYFUNCTION(\"\"\"COMPUTED_VALUE\"\"\"),\"Distribution of Profits and Quasi-rents within and between the harvesting and processing sectors\")","v":"Distribution of Profits and Quasi-rents within and between the harvesting and processing sectors"},{"$nulls":6},{"$f":"IFERROR(__xludf.DUMMYFUNCTION(\"\"\"COMPUTED_VALUE\"\"\"),1)","v":1},{"$f":"IFERROR(__xludf.DUMMYFUNCTION(\"\"\"COMPUTED_VALUE\"\"\"),1)","v":1}]
[null,{"$f":"IFERROR(__xludf.DUMMYFUNCTION(\"\"\"COMPUTED_VALUE\"\"\"),\"Distributions of harvester and processor use rights\")","v":"Distributions of harvester and processor use rights"},{"$nulls":6},{"$f":"IFERROR(__xludf.DUMMYFUNCTION(\"\"\"COMPUTED_VALUE\"\"\"),1)","v":1},{"$nulls":3},{"$f":"IFERROR(__xludf.DUMMYFUNCTION(\"\"\"COMPUTED_VALUE\"\"\"),1)","v":1}]
[null,{"$f":"IFERROR(__xludf.DUMMYFUNCTION(\"\"\"COMPUTED_VALUE\"\"\"),\"Value of privileges \")","v":"Value of privileges "},{"$nulls":6},{"$f":"IFERROR(__xludf.DUMMYFUNCTION(\"\"\"COMPUTED_VALUE\"\"\"),1)","v":1},{"$nulls":3},{"$f":"IFERROR(__xludf.DUMMYFUNCTION(\"\"\"COMPUTED_VALUE\"\"\"),1)","v":1}]
[null,{"$f":"IFERROR(__xludf.DUMMYFUNCTION(\"\"\"COMPUTED_VALUE\"\"\"),\"Vertical Integration\")","v":"Vertical Integration"},{"$nulls":6},{"$f":"IFERROR(__xludf.DUMMYFUNCTION(\"\"\"COMPUTED_VALUE\"\"\"),1)","v":1},{"$nulls":3},{"$f":"IFERROR(__xludf.DUMMYFUNCTION(\"\"\"COMPUTED_VALUE\"\"\"),1)","v":1}]
[null,{"$f":"IFERROR(__xludf.DUMMYFUNCTION(\"\"\"COMPUTED_VALUE\"\"\"),\"Concentration of ownership, vessels/plants, QS, by sector, domestic/foreign\")","v":"Concentration of ownership, vessels/plants, QS, by sector, domestic/foreign"},{"$nulls":6},{"$f":"IFERROR(__xludf.DUMMYFUNCTION(\"\"\"COMPUTED_VALUE\"\"\"),1)","v":1},{"$nulls":3},{"$f":"IFERROR(__xludf.DUMMYFUNCTION(\"\"\"COMPUTED_VALUE\"\"\"),1)","v":1}]
[null,{"$f":"IFERROR(__xludf.DUMMYFUNCTION(\"\"\"COMPUTED_VALUE\"\"\"),\"Regional economic impacts- wages and purchasing\")","v":"Regional economic impacts- wages and purchasing"},{"$f":"IFERROR(__xludf.DUMMYFUNCTION(\"\"\"COMPUTED_VALUE\"\"\"),1)","v":1},{"$f":"IFERROR(__xludf.DUMMYFUNCTION(\"\"\"COMPUTED_VALUE\"\"\"),1)","v":1},{"$f":"IFERROR(__xludf.DUMMYFUNCTION(\"\"\"COMPUTED_VALUE\"\"\"),1)","v":1},{"$f":"IFERROR(__xludf.DUMMYFUNCTION(\"\"\"COMPUTED_VALUE\"\"\"),1)","v":1},{"$f":"IFERROR(__xludf.DUMMYFUNCTION(\"\"\"COMPUTED_VALUE\"\"\"),1)","v":1},null,null,{"$f":"IFERROR(__xludf.DUMMYFUNCTION(\"\"\"COMPUTED_VALUE\"\"\"),1)","v":1},{"$f":"IFERROR(__xludf.DUMMYFUNCTION(\"\"\"COMPUTED_VALUE\"\"\"),1)","v":1},{"$f":"IFERROR(__xludf.DUMMYFUNCTION(\"\"\"COMPUTED_VALUE\"\"\"),1)","v":1},{"$f":"IFERROR(__xludf.DUMMYFUNCTION(\"\"\"COMPUTED_VALUE\"\"\"),1)","v":1},{"$f":"IFERROR(__xludf.DUMMYFUNCTION(\"\"\"COMPUTED_VALUE\"\"\"),1)","v":1}]
[null,{"$f":"IFERROR(__xludf.DUMMYFUNCTION(\"\"\"COMPUTED_VALUE\"\"\"),\"Harvesting employment and payments to harvesting crews\")","v":"Harvesting employment and payments to harvesting crews"},null,{"$f":"IFERROR(__xludf.DUMMYFUNCTION(\"\"\"COMPUTED_VALUE\"\"\"),1)","v":1},{"$nulls":5},{"$f":"IFERROR(__xludf.DUMMYFUNCTION(\"\"\"COMPUTED_VALUE\"\"\"),1)","v":1}]
[null,{"$f":"IFERROR(__xludf.DUMMYFUNCTION(\"\"\"COMPUTED_VALUE\"\"\"),\"Processing employment and payments to processing crews\")","v":"Processing employment and payments to processing crews"},null,{"$f":"IFERROR(__xludf.DUMMYFUNCTION(\"\"\"COMPUTED_VALUE\"\"\"),1)","v":1}]
[null,{"$f":"IFERROR(__xludf.DUMMYFUNCTION(\"\"\"COMPUTED_VALUE\"\"\"),\"Individual non-labor operating inputs, quantity and cost\")","v":"Individual non-labor operating inputs, quantity and cost"},null,null,{"$f":"IFERROR(__xludf.DUMMYFUNCTION(\"\"\"COMPUTED_VALUE\"\"\"),1)","v":1},{"$f":"IFERROR(__xludf.DUMMYFUNCTION(\"\"\"COMPUTED_VALUE\"\"\"),1)","v":1},{"$f":"IFERROR(__xludf.DUMMYFUNCTION(\"\"\"COMPUTED_VALUE\"\"\"),1)","v":1}]
[null,{"$f":"IFERROR(__xludf.DUMMYFUNCTION(\"\"\"COMPUTED_VALUE\"\"\"),\"Capitalized purchases of trawl and excluder gear\")","v":"Capitalized purchases of trawl and excluder gear"},{"$nulls":5},{"$f":"IFERROR(__xludf.DUMMYFUNCTION(\"\"\"COMPUTED_VALUE\"\"\"),1)","v":1}]
[]
[]
[]
[null,"Metrics that can't be calculated using A80 EDR data"]
[null,{"$f":"IFERROR(__xludf.DUMMYFUNCTION(\"filter('Overall mapping'!B8:B27,iserror(match('Overall mapping'!B8:B27,B8:B27,0)))\"),\"Degree of involvement of harvesters/processors in non-program AK fisheries\")","v":"Degree of involvement of harvesters/processors in non-program AK fisheries"}]
[null,{"$f":"IFERROR(__xludf.DUMMYFUNCTION(\"\"\"COMPUTED_VALUE\"\"\"),\"Seasonality of catch and ex-vessel revenue by vessel class, port of landing, and residence\")","v":"Seasonality of catch and ex-vessel revenue by vessel class, port of landing, and residence"}]

{"sheet":"Crab mapping","index":4,"n_rows":37,"n_cols":14,"rows_kept":37,"merged":[[0,0,2,1],[1,2,1,11],[1,12,1,13],[3,0,6,0],[7,0,26,0]]}
[{"$f":"'Overall mapping'!A1","v":"How to read this table: \n\nEDR Content Rating: quality/completeness of information captured in EDR form(s), rated 1 to 5 \n   5: data are essentially complete/sufficient to support calculation or estimation of all relevant performance metrics \n   4: data are sufficiently complete to support all intended performance metrics specified by Council\n   3: data are incomplete, but sufficient to support meaningful estimates/indices of intended performance metrics \n   2: data are fragmentary and do not support generally comparable performance metrics, but individual variables collected provide potentially useful information\n   1: data are collected but are insufficient to provide useful information\n   blank - indicates no data collected\n\nPerformance Metrics Rows: The 1's indicate if one or more of these data elements are used in the creation of these performance metrics."}]
[null,null,"EDR data element (variable) categories",{"$nulls":9},{"$f":"'Overall mapping'!M2","v":"Also requires existing data"}]
[null,null,"Capital Stock","Labor","Energy","Materials","Services","Capital Investment","Quota Lease Value","Crew Licenses","Revenues (fisheries products)","Other Revenues (royalties, charter, tendering)","Existing administrative records","Existing statistical surveys"]
[{"$f":"'Overall mapping'!A4","v":"EDR Content Rating"}]
[]
[]
[null,{"$f":"'Overall mapping'!B7","v":"Crab"},{"$f":"IF('Overall mapping'!C7>0,'Overall mapping'!C7,\"\")","v":4},{"$f":"IF('Overall mapping'!D7>0,'Overall mapping'!D7,\"\")","v":4},{"$f":"IF('Overall mapping'!E7>0,'Overall mapping'!E7,\"\")","v":4},{"$f":"IF('Overall mapping'!F7>0,'Overall mapping'!F7,\"\")","v":3},{"$f":"IF('Overall mapping'!G7>0,'Overall mapping'!G7,\"\")","v":""},{"$f":"IF('Overall mapping'!H7>0,'Overall mapping'!H7,\"\")","v":""},{"$f":"IF('Overall mapping'!I7>0,'Overall mapping'!I7,\"\")","v":5},{"$f":"IF('Overall mapping'!J7>0,'Overall mapping'!J7,\"\")","v":4},{"$f":"IF('Overall mapping'!K7>0,'Overall mapping'!K7,\"\")","v":5},{"$f":"IF('Overall mapping'!L7>0,'Overall mapping'!L7,\"\")","v":""},{"$f":"IF('Overall mapping'!M7>0,'Overall mapping'!M7,\"\")","v":""},{"$f":"IF('Overall mapping'!N7>0,'Overall mapping'!N7,\"\")","v":""}]
[{"$f":"'Overall mapping'!A8","v":"Performance Metrics listed in EDR implemention RIR (see Table 1 from Nov. 2019 paper)"},{"$f":"IFERROR(__xludf.DUMMYFUNCTION(\"filter('Overall mapping'!B8:N27,('Overall mapping'!E8:E27=1) +('Overall mapping'!C8:C27=1) +('Overall mapping'!D8:D27=1) +('Overall mapping'!F8:F27=1)+('Overall mapping'!I8:I27=1)+('Overall mapping'!J8:J27=1)+('Overall mapping'!K8:K27=1),('Overall mapping\"&\"'!G8:G27=\"\"\"\"),('Overall mapping'!H8:H27=\"\"\"\"),('Overall mapping'!L8:L27=\"\"\"\"))\"),\"Capitalized value of vessel/plant and equipment\")","v":"Capitalized value of vessel/plant and equipment"},{"$f":"IFERROR(__xludf.DUMMYFUNCTION(\"\"\"COMPUTED_VALUE\"\"\"),1)","v":1}]
[null,{"$f":"IFERROR(__xludf.DUMMYFUNCTION(\"\"\"COMPUTED_VALUE\"\"\"),\"Direct Capacity\")","v":"Direct Capacity"},{"$f":"IFERROR(__xludf.DUMMYFUNCTION(\"\"\"COMPUTED_VALUE\"\"\"),1)","v":1},{"$nulls":9},{"$f":"IFERROR(__xludf.DUMMYFUNCTION(\"\"\"COMPUTED_VALUE\"\"\"),1)","v":1}]
[null,{"$f":"IFERROR(__xludf.DUMMYFUNCTION(\"\"\"COMPUTED_VALUE\"\"\"),\"Quasi-rent\")","v":"Quasi-rent"},{"$f":"IFERROR(__xludf.DUMMYFUNCTION(\"\"\"COMPUTED_VALUE\"\"\"),1)","v":1},{"$f":"IFERROR(__xludf.DUMMYFUNCTION(\"\"\"COMPUTED_VALUE\"\"\"),1)","v":1},{"$f":"IFERROR(__xludf.DUMMYFUNCTION(\"\"\"COMPUTED_VALUE\"\"\"),1)","v":1},{"$f":"IFERROR(__xludf.DUMMYFUNCTION(\"\"\"COMPUTED_VALUE\"\"\"),1)","v":1},null,null,{"$f":"IFERROR(__xludf.DUMMYFUNCTION(\"\"\"COMPUTED_VALUE\"\"\"),1)","v":1},null,{"$f":"IFERROR(__xludf.DUMMYFUNCTION(\"\"\"COMPUTED_VALUE\"\"\"),1)","v":1},null,{"$f":"IFERROR(__xludf.DUMMYFUNCTION(\"\"\"COMPUTED_VALUE\"\"\"),1)","v":1}]
[null,{"$f":"IFERROR(__xludf.DUMMYFUNCTION(\"\"\"COMPUTED_VALUE\"\"\"),\"Fuel Consumption\")","v":"Fuel Consumption"},null,null,{"$f":"IFERROR(__xludf.DUMMYFUNCTION(\"\"\"COMPUTED_VALUE\"\"\"),1)","v":1}]
[null,{"$f":"IFERROR(__xludf.DUMMYFUNCTION(\"\"\"COMPUTED_VALUE\"\"\"),\"Distribution of Harvest Volume and Revenue\")","v":"Distribution of Harvest Volume and Revenue"},{"$nulls":6},{"$f":"IFERROR(__xludf.DUMMYFUNCTION(\"\"\"COMPUTED_VALUE\"\"\"),1)","v":1},{"$f":"IFERROR(__xludf.DUMMYFUNCTION(\"\"\"COMPUTED_VALUE\"\"\"),1)","v":1},null,null,{"$f":"IFERROR(__xludf.DUMMYFUNCTION(\"\"\"COMPUTED_VALUE\"\"\"),1)","v":1}]
[null,{"$f":"IFERROR(__xludf.DUMMYFUNCTION(\"\"\"COMPUTED_VALUE\"\"\"),\"Distribution of Profits and Quasi-rents within and between the harvesting and processing sectors\")","v":"Distribution of Profits and Quasi-rents within and between the harvesting and processing sectors"},{"$nulls":6},{"$f":"IFERROR(__xludf.DUMMYFUNCTION(\"\"\"COMPUTED_VALUE\"\"\"),1)","v":1},{"$f":"IFERROR(__xludf.DUMMYFUNCTION(\"\"\"COMPUTED_VALUE\"\"\"),1)","v":1}]
[null,{"$f":"IFERROR(__xludf.DUMMYFUNCTION(\"\"\"COMPUTED_VALUE\"\"\"),\"Distributions of harvester and processor use rights\")","v":"Distributions of harvester and processor use rights"},{"$nulls":6},{"$f":"IFERROR(__xludf.DUMMYFUNCTION(\"\"\"COMPUTED_VALUE\"\"\"),1)","v":1},{"$nulls":3},{"$f":"IFERROR(__xludf.DUMMYFUNCTION(\"\"\"COMPUTED_VALUE\"\"\"),1)","v":1}]
[null,{"$f":"IFERROR(__xludf.DUMMYFUNCTION(\"\"\"COMPUTED_VALUE\"\"\"),\"Value of privileges \")","v":"Value of privileges "},{"$nulls":6},{"$f":"IFERROR(__xludf.DUMMYFUNCTION(\"\"\"COMPUTED_VALUE\"\"\"),1)","v":1},{"$nulls":3},{"$f":"IFERROR(__xludf.DUMMYFUNCTION(\"\"\"COMPUTED_VALUE\"\"\"),1)","v":1}]
[null,{"$f":"IFERROR(__xludf.DUMMYFUNCTION(\"\"\"COMPUTED_VALUE\"\"\"),\"Vertical Integration\")","v":"Vertical Integration"},{"$nulls":6},{"$f":"IFERROR(__xludf.DUMMYFUNCTION(\"\"\"COMPUTED_VALUE\"\"\"),1)","v":1},{"$nulls":3},{"$f":"IFERROR(__xludf.DUMMYFUNCTION(\"\"\"COMPUTED_VALUE\"\"\"),1)","v":1}]
[null,{"$f":"IFERROR(__xludf.DUMMYFUNCTION(\"\"\"COMPUTED_VALUE\"\"\"),\"Concentration of ownership, vessels/plants, QS, by sector, domestic/foreign\")","v":"Concentration of ownership, vessels/plants, QS, by sector, domestic/foreign"},{"$nulls":6},{"$f":"IFERROR(__xludf.DUMMYFUNCTION(\"\"\"COMPUTED_VALUE\"\"\"),1)","v":1},{"$nulls":3},{"$f":"IFERROR(__xludf.DUMMYFUNCTION(\"\"\"COMPUTED_VALUE\"\"\"),1)","v":1}]
[null,{"$f":"IFERROR(__xludf.DUMMYFUNCTION(\"\"\"COMPUTED_VALUE\"\"\"),\"Harvesting employment and payments to harvesting crews\")","v":"Harvesting employment and payments to harvesting crews"},null,{"$f":"IFERROR(__xludf.DUMMYFUNCTION(\"\"\"COMPUTED_VALUE\"\"\"),1)","v":1},{"$nulls":5},{"$f":"IFERROR(__xludf.DUMMYFUNCTION(\"\"\"COMPUTED_VALUE\"\"\"),1)","v":1}]
[null,{"$f":"IFERROR(__xludf.DUMMYFUNCTION(\"\"\"COMPUTED_VALUE\"\"\"),\"Processing employment and payments to processing crews\")","v":"Processing employment and payments to processing crews"},null,{"$f":"IFERROR(__xludf.DUMMYFUNCTION(\"\"\"COMPUTED_VALUE\"\"\"),1)","v":1}]
{"$rows_empty":9}
[null,"Metrics that can't be calculated using Crab EDR data"]
[null,{"$f":"IFERROR(__xludf.DUMMYFUNCTION(\"filter('Overall mapping'!B8:B27,iserror(match('Overall mapping'!B8:B27,B8:B27,0)))\"),\"Capacity Utilization\")","v":"Capacity Utilization"}]
[null,{"$f":"IFERROR(__xludf.DUMMYFUNCTION(\"\"\"COMPUTED_VALUE\"\"\"),\"Profit\")","v":"Profit"}]
[null,{"$f":"IFERROR(__xludf.DUMMYFUNCTION(\"\"\"COMPUTED_VALUE\"\"\"),\"Productivity\")","v":"Productivity"}]
[null,{"$f":"IFERROR(__xludf.DUMMYFUNCTION(\"\"\"COMPUTED_VALUE\"\"\"),\"Degree of involvement of harvesters/processors in non-program AK fisheries\")","v":"Degree of involvement of harvesters/processors in non-program AK fisheries"}]
[null,{"$f":"IFERROR(__xludf.DUMMYFUNCTION(\"\"\"COMPUTED_VALUE\"\"\"),\"Regional economic impacts- wages and purchasing\")","v":"Regional economic impacts- wages and purchasing"}]
[null,{"$f":"IFERROR(__xludf.DUMMYFUNCTION(\"\"\"COMPUTED_VALUE\"\"\"),\"Seasonality of catch and ex-vessel revenue by vessel class, port of landing, and residence\")","v":"Seasonality of catch and ex-vessel revenue by vessel class, port of landing, and residence"}]
[null,{"$f":"IFERROR(__xludf.DUMMYFUNCTION(\"\"\"COMPUTED_VALUE\"\"\"),\"Individual non-labor operating inputs, quantity and cost\")","v":"Individual non-labor operating inputs, quantity and cost"}]
[null,{"$f":"IFERROR(__xludf.DUMMYFUNCTION(\"\"\"COMPUTED_VALUE\"\"\"),\"Capitalized purchases of trawl and excluder gear\")","v":"Capitalized purchases of trawl and excluder gear"}]

{"sheet":"GT mapping","index":5,"n_rows":45,"n_cols":14,"rows_kept":45,"merged":[[0,0,2,1],[1,2,1,11],[1,12,1,13],[3,0,6,0],[7,0,26,0]]}
[{"$f":"'Overall mapping'!A1","v":"How to read this table: \n\nEDR Content Rating: quality/completeness of information captured in EDR form(s), rated 1 to 5 \n   5: data are essentially complete/sufficient to support calculation or estimation of all relevant performance metrics \n   4: data are sufficiently complete to support all intended performance metrics specified by Council\n   3: data are incomplete, but sufficient to support meaningful estimates/indices of intended performance metrics \n   2: data are fragmentary and do not support generally comparable performance metrics, but individual variables collected provide potentially useful information\n   1: data are collected but are insufficient to provide useful information\n   blank - indicates no data collected\n\nPerformance Metrics Rows: The 1's indicate if one or more of these data elements are used in the creation of these performance metrics."}]
[null,null,"EDR data element (variable) categories",{"$nulls":9},{"$f":"'Overall mapping'!M2","v":"Also requires existing data"}]
[null,null,"Capital Stock","Labor","Energy","Materials","Services","Capital Investment","Quota Lease Value","Crew Licenses","Revenues (fisheries products)","Other Revenues (royalties, charter, tendering)","Existing administrative records","Existing statistical surveys"]
[{"$f":"'Overall mapping'!A4","v":"EDR Content Rating"}]
[]
[null,{"$f":"'Overall mapping'!B6","v":"Gulf Trawl"},{"$f":"IF('Overall mapping'!C6>0,'Overall mapping'!C6,\"\")","v":4},{"$f":"IF('Overall mapping'!D6>0,'Overall mapping'!D6,\"\")","v":4},{"$f":"IF('Overall mapping'!E6>0,'Overall mapping'!E6,\"\")","v":3},{"$f":"IF('Overall mapping'!F6>0,'Overall mapping'!F6,\"\")","v":1},{"$f":"IF('Overall mapping'!G6>0,'Overall mapping'!G6,\"\")","v":""},{"$f":"IF('Overall mapping'!H6>0,'Overall mapping'!H6,\"\")","v":2},{"$f":"IF('Overall mapping'!I6>0,'Overall mapping'!I6,\"\")","v":""},{"$f":"IF('Overall mapping'!J6>0,'Overall mapping'!J6,\"\")","v":4},{"$f":"IF('Overall mapping'!K6>0,'Overall mapping'!K6,\"\")","v":""},{"$f":"IF('Overall mapping'!L6>0,'Overall mapping'!L6,\"\")","v":""},{"$f":"IF('Overall mapping'!M6>0,'Overall mapping'!M6,\"\")","v":""},{"$f":"IF('Overall mapping'!N6>0,'Overall mapping'!N6,\"\")","v":""}]
[]
[{"$f":"'Overall mapping'!A8","v":"Performance Metrics listed in EDR implemention RIR (see Table 1 from Nov. 2019 paper)"},{"$f":"IFERROR(__xludf.DUMMYFUNCTION(\"filter('Overall mapping'!B8:N27,('Overall mapping'!E8:E27=1) +('Overall mapping'!D8:D27=1) +('Overall mapping'!H8:H27=1)+('Overall mapping'!J8:J27=1)+('Overall mapping'!K8:K27=1),('Overall mapping'!G8:G27=\"\"\"\"),('Overall mapping'!L8:L27=\"\"\"\"),('Overall ma\"&\"pping'!F8:F27=\"\"\"\"),('Overall mapping'!I8:I27=\"\"\"\"),('Overall mapping'!C8:C27=\"\"\"\"))\"),\"Fuel Consumption\")","v":"Fuel Consumption"},null,null,{"$f":"IFERROR(__xludf.DUMMYFUNCTION(\"\"\"COMPUTED_VALUE\"\"\"),1)","v":1}]
[null,{"$f":"IFERROR(__xludf.DUMMYFUNCTION(\"\"\"COMPUTED_VALUE\"\"\"),\"Harvesting employment and payments to harvesting crews\")","v":"Harvesting employment and payments to harvesting crews"},null,{"$f":"IFERROR(__xludf.DUMMYFUNCTION(\"\"\"COMPUTED_VALUE\"\"\"),1)","v":1},{"$nulls":5},{"$f":"IFERROR(__xludf.DUMMYFUNCTION(\"\"\"COMPUTED_VALUE\"\"\"),1)","v":1}]
[null,{"$f":"IFERROR(__xludf.DUMMYFUNCTION(\"\"\"COMPUTED_VALUE\"\"\"),\"Processing employment and payments to processing crews\")","v":"Processing employment and payments to processing crews"},null,{"$f":"IFERROR(__xludf.DUMMYFUNCTION(\"\"\"COMPUTED_VALUE\"\"\"),1)","v":1}]
[null,{"$f":"IFERROR(__xludf.DUMMYFUNCTION(\"\"\"COMPUTED_VALUE\"\"\"),\"Capitalized purchases of trawl and excluder gear\")","v":"Capitalized purchases of trawl and excluder gear"},{"$nulls":5},{"$f":"IFERROR(__xludf.DUMMYFUNCTION(\"\"\"COMPUTED_VALUE\"\"\"),1)","v":1}]
{"$rows_empty":17}
[null,"Metrics that can't be calculated using GOA Trawl EDR data"]
[null,{"$f":"IFERROR(__xludf.DUMMYFUNCTION(\"filter('Overall mapping'!B8:B27,iserror(match('Overall mapping'!B8:B27,B8:B27,0)))\"),\"Capitalized value of vessel/plant and equipment\")","v":"Capitalized value of vessel/plant and equipment"}]
[null,{"$f":"IFERROR(__xludf.DUMMYFUNCTION(\"\"\"COMPUTED_VALUE\"\"\"),\"Direct Capacity\")","v":"Direct Capacity"}]
[null,{"$f":"IFERROR(__xludf.DUMMYFUNCTION(\"\"\"COMPUTED_VALUE\"\"\"),\"Capacity Utilization\")","v":"Capacity Utilization"}]
[null,{"$f":"IFERROR(__xludf.DUMMYFUNCTION(\"\"\"COMPUTED_VALUE\"\"\"),\"Profit\")","v":"Profit"}]
[null,{"$f":"IFERROR(__xludf.DUMMYFUNCTION(\"\"\"COMPUTED_VALUE\"\"\"),\"Quasi-rent\")","v":"Quasi-rent"}]
[null,{"$f":"IFERROR(__xludf.DUMMYFUNCTION(\"\"\"COMPUTED_VALUE\"\"\"),\"Productivity\")","v":"Productivity"}]
[null,{"$f":"IFERROR(__xludf.DUMMYFUNCTION(\"\"\"COMPUTED_VALUE\"\"\"),\"Distribution of Harvest Volume and Revenue\")","v":"Distribution of Harvest Volume and Revenue"}]
[null,{"$f":"IFERROR(__xludf.DUMMYFUNCTION(\"\"\"COMPUTED_VALUE\"\"\"),\"Distribution of Profits and Quasi-rents within and between the harvesting and processing sectors\")","v":"Distribution of Profits and Quasi-rents within and between the harvesting and processing sectors"}]
[null,{"$f":"IFERROR(__xludf.DUMMYFUNCTION(\"\"\"COMPUTED_VALUE\"\"\"),\"Distributions of harvester and processor use rights\")","v":"Distributions of harvester and processor use rights"}]
[null,{"$f":"IFERROR(__xludf.DUMMYFUNCTION(\"\"\"COMPUTED_VALUE\"\"\"),\"Value of privileges \")","v":"Value of privileges "}]
[null,{"$f":"IFERROR(__xludf.DUMMYFUNCTION(\"\"\"COMPUTED_VALUE\"\"\"),\"Vertical Integration\")","v":"Vertical Integration"}]
[null,{"$f":"IFERROR(__xludf.DUMMYFUNCTION(\"\"\"COMPUTED_VALUE\"\"\"),\"Concentration of ownership, vessels/plants, QS, by sector, domestic/foreign\")","v":"Concentration of ownership, vessels/plants, QS, by sector, domestic/foreign"}]
[null,{"$f":"IFERROR(__xludf.DUMMYFUNCTION(\"\"\"COMPUTED_VALUE\"\"\"),\"Degree of involvement of harvesters/processors in non-program AK fisheries\")","v":"Degree of involvement of harvesters/processors in non-program AK fisheries"}]
[null,{"$f":"IFERROR(__xludf.DUMMYFUNCTION(\"\"\"COMPUTED_VALUE\"\"\"),\"Regional economic impacts- wages and purchasing\")","v":"Regional economic impacts- wages and purchasing"}]
[null,{"$f":"IFERROR(__xludf.DUMMYFUNCTION(\"\"\"COMPUTED_VALUE\"\"\"),\"Seasonality of catch and ex-vessel revenue by vessel class, port of landing, and residence\")","v":"Seasonality of catch and ex-vessel revenue by vessel class, port of landing, and residence"}]
[null,{"$f":"IFERROR(__xludf.DUMMYFUNCTION(\"\"\"COMPUTED_VALUE\"\"\"),\"Individual non-labor operating inputs, quantity and cost\")","v":"Individual non-labor operating inputs, quantity and cost"}]